[Event "*** SCC Grand Prix: Titled Tuesday Blitz"]
[Site "Chess.com"]
[Date "2020.08.04"]
[Round "6"]
[White "rasmussvane"]
[Black "Shota_Azaladze"]
[Result "1-0"]
[WhiteElo "2865"]
[BlackElo "2690"]
[TimeControl "180+1"]
[EndTime "14:51:46 PDT"]
[Termination "rasmussvane won by resignation"]

1. Nf3 {[%clk 0:03:00.3]} 1... g6 {[%clk 0:02:59.7]} 2. g3 {[%clk 0:02:59.9]}
2... Bg7 {[%clk 0:03:00.3]} 3. d4 {[%clk 0:03:00.4]} 3... c5 {[%clk 0:02:58.6]}
4. c4 {[%clk 0:02:56.7]} 4... cxd4 {[%clk 0:02:57.1]} 5. Nxd4 {[%clk 0:02:57.6]}
5... Nc6 {[%clk 0:02:56.6]} 6. Nc2 {[%clk 0:02:56.8]} 6... Nf6 {[%clk
0:02:55.7]} 7. Bg2 {[%clk 0:02:57.2]} 7... O-O {[%clk 0:02:56.4]} 8. O-O {[%clk
0:02:57.2]} 8... Qa5 {[%clk 0:02:55.3]} 9. Nc3 {[%clk 0:02:56.7]} 9... d6 {[%clk
0:02:46.2]} 10. Ne3 {[%clk 0:02:30.2]} 10... Be6 {[%clk 0:02:37.1]} 11. Bd2
{[%clk 0:02:22.1]} 11... Rfc8 {[%clk 0:02:35]} 12. Rc1 {[%clk 0:02:20.1]} 12...
Qh5 {[%clk 0:02:30.8]} 13. b3 {[%clk 0:02:19]} 13... Bh3 {[%clk 0:02:29.6]} 14.
Ncd5 {[%clk 0:02:17.1]} 14... Bxg2 {[%clk 0:01:49.8]} 15. Nxf6+ {[%clk 0:02:17]}
15... Bxf6 {[%clk 0:01:48.2]} 16. Kxg2 {[%clk 0:02:17.3]} 16... e6 {[%clk
0:01:40.7]} 17. Bc3 {[%clk 0:02:16.8]} 17... Bg5 {[%clk 0:01:32.9]} 18. f4
{[%clk 0:02:00.7]} 18... Be7 {[%clk 0:01:32.2]} 19. h3 {[%clk 0:02:01.3]} 19...
b5 {[%clk 0:01:28.5]} 20. Ng4 {[%clk 0:01:51.8]} 20... bxc4 {[%clk 0:01:20.7]}
21. Bf6 {[%clk 0:01:51.9]} 21... Qd5+ {[%clk 0:01:00]} 22. Qxd5 {[%clk
0:01:46.7]} 22... exd5 {[%clk 0:01:00.9]} 23. bxc4 {[%clk 0:01:47.3]} 23... dxc4
{[%clk 0:00:55.6]} 24. Rxc4 {[%clk 0:01:45.1]} 24... Bxf6 {[%clk 0:00:55.7]} 25.
Nxf6+ {[%clk 0:01:46]} 25... Kg7 {[%clk 0:00:56.2]} 26. Rfc1 {[%clk 0:01:33]}
26... Kxf6 {[%clk 0:00:49.3]} 27. Rxc6 {[%clk 0:01:33.2]} 27... Rxc6 {[%clk
0:00:49.2]} 28. Rxc6 {[%clk 0:01:34.1]} 28... Ke6 {[%clk 0:00:45.7]} 29. Ra6
{[%clk 0:01:33.1]} 29... Kd5 {[%clk 0:00:41.5]} 30. Kf3 {[%clk 0:01:29.8]} 30...
f5 {[%clk 0:00:41.1]} 31. a4 {[%clk 0:01:29.6]} 31... Kc5 {[%clk 0:00:40.7]} 32.
Ke3 {[%clk 0:01:20.3]} 32... Re8+ {[%clk 0:00:30.5]} 33. Kd3 {[%clk 0:01:13.7]}
33... Re7 {[%clk 0:00:30.4]} 34. g4 {[%clk 0:01:02.2]} 34... d5 {[%clk
0:00:28.7]} 35. e3 {[%clk 0:00:34.8]} 35... Rb7 {[%clk 0:00:25.8]} 36. gxf5
{[%clk 0:00:34]} 36... gxf5 {[%clk 0:00:26.7]} 37. Rf6 {[%clk 0:00:31.1]} 37...
Rb3+ {[%clk 0:00:24]} 38. Ke2 {[%clk 0:00:31.4]} 38... d4 {[%clk 0:00:21.6]} 39.
Rxf5+ {[%clk 0:00:28.5]} 39... Kc4 {[%clk 0:00:21.7]} 40. Re5 {[%clk 0:00:22]}
40... Rb2+ {[%clk 0:00:19.8]} 41. Kf3 {[%clk 0:00:21.7]} 41... d3 {[%clk
0:00:19.9]} 42. Re4+ {[%clk 0:00:20.3]} 42... Kc3 {[%clk 0:00:19.7]} 43. Rd4
{[%clk 0:00:20.5]} 43... Rh2 {[%clk 0:00:20.2]} 44. Kg3 {[%clk 0:00:16.7]} 44...
Re2 {[%clk 0:00:19.9]} 45. Kf3 {[%clk 0:00:17.1]} 45... Rh2 {[%clk 0:00:19.9]}
46. Kg3 {[%clk 0:00:06]} 46... Rh1 {[%clk 0:00:20.1]} 47. Kg2 {[%clk 0:00:03.2]}
47... Ra1 {[%clk 0:00:19.1]} 48. f5 {[%clk 0:00:03]} 48... Re1 {[%clk
0:00:16.5]} 49. f6 {[%clk 0:00:02.3]} 49... Re2+ {[%clk 0:00:11.9]} 50. Kf3
{[%clk 0:00:02.3]} 50... Re1 {[%clk 0:00:12]} 51. Kf2 {[%clk 0:00:02.7]} 51...
Re2+ {[%clk 0:00:12.1]} 52. Kf3 {[%clk 0:00:03.2]} 52... Re1 {[%clk 0:00:11.9]}
53. Ke4 {[%clk 0:00:03.8]} 53... Rf1 {[%clk 0:00:11.9]} 54. Rxd3+ {[%clk
0:00:03.7]} 54... Kc2 {[%clk 0:00:12.4]} 55. Rd6 {[%clk 0:00:04.6]} 55... Kb3
{[%clk 0:00:12]} 56. Ke5 {[%clk 0:00:05]} 56... a5 {[%clk 0:00:12.5]} 57. e4
{[%clk 0:00:05.3]} 57... Kxa4 {[%clk 0:00:13.4]} 58. Ke6 {[%clk 0:00:05.8]}
58... Kb5 {[%clk 0:00:13.8]} 59. f7 {[%clk 0:00:06.1]} 59... a4 {[%clk
0:00:14.7]} 60. Ke7 {[%clk 0:00:06.3]} 60... a3 {[%clk 0:00:15.1]} 61. f8=Q
{[%clk 0:00:06.7]} 61... Rxf8 {[%clk 0:00:14.2]} 62. Kxf8 {[%clk 0:00:07.6]}
62... a2 {[%clk 0:00:14.7]} 63. Rd1 {[%clk 0:00:08.2]} 63... Kc4 {[%clk
0:00:15.2]} 64. Ra1 {[%clk 0:00:08.3]} 64... Kb3 {[%clk 0:00:16.1]} 1-0

[Event "*** SCC Grand Prix: Titled Tuesday Blitz"]
[Site "Chess.com"]
[Date "2020.08.04"]
[Round "6"]
[White "guillembaches"]
[Black "GM_LOADING"]
[Result "1/2-1/2"]
[WhiteElo "2429"]
[BlackElo "2615"]
[TimeControl "180+1"]
[EndTime "14:51:47 PDT"]
[Termination "Game drawn by repetition"]

1. e4 {[%clk 0:03:00.9]} 1... Nf6 {[%clk 0:03:00.3]} 2. e5 {[%clk 0:03:00.9]}
2... Nd5 {[%clk 0:03:00.8]} 3. c4 {[%clk 0:03:01.4]} 3... Nb6 {[%clk 0:03:00.5]}
4. d4 {[%clk 0:03:01.9]} 4... d6 {[%clk 0:03:00.9]} 5. exd6 {[%clk 0:03:02.8]}
5... cxd6 {[%clk 0:03:01.8]} 6. Nc3 {[%clk 0:03:03]} 6... g6 {[%clk 0:03:02.3]}
7. Bd3 {[%clk 0:03:03.4]} 7... Bg7 {[%clk 0:03:02.4]} 8. Nge2 {[%clk 0:03:03.8]}
8... Nc6 {[%clk 0:03:02.9]} 9. d5 {[%clk 0:03:04.1]} 9... Nb4 {[%clk 0:02:54.3]}
10. O-O {[%clk 0:03:00.2]} 10... Nxd3 {[%clk 0:02:52.6]} 11. Qxd3 {[%clk
0:02:59.9]} 11... O-O {[%clk 0:02:53.5]} 12. b3 {[%clk 0:02:59.2]} 12... Bf5
{[%clk 0:02:34.3]} 13. Qd2 {[%clk 0:02:58.8]} 13... e6 {[%clk 0:02:29.6]} 14.
dxe6 {[%clk 0:02:58.7]} 14... Bxe6 {[%clk 0:02:27.2]} 15. Bb2 {[%clk 0:02:57.3]}
15... d5 {[%clk 0:02:23.1]} 16. Nxd5 {[%clk 0:02:50.3]} 16... Bxd5 {[%clk
0:02:20]} 17. cxd5 {[%clk 0:02:31.6]} 17... Qxd5 {[%clk 0:02:20.9]} 18. Qxd5
{[%clk 0:02:28.1]} 18... Nxd5 {[%clk 0:02:21.8]} 19. Bxg7 {[%clk 0:02:28]} 19...
Kxg7 {[%clk 0:02:22.7]} 20. Rfd1 {[%clk 0:02:24.3]} 20... Rad8 {[%clk
0:02:16.6]} 21. Rd4 {[%clk 0:02:20.4]} 21... Rfe8 {[%clk 0:02:14.1]} 22. Kf1
{[%clk 0:02:15.4]} 22... Nf6 {[%clk 0:00:54.9]} 23. Rad1 {[%clk 0:02:12.2]}
23... Rc8 {[%clk 0:00:53.9]} 24. f3 {[%clk 0:02:07]} 24... Rc2 {[%clk
0:00:51.3]} 25. R4d2 {[%clk 0:02:06.7]} 25... Rec8 {[%clk 0:00:50.7]} 26. Kf2
{[%clk 0:01:58.1]} 26... a5 {[%clk 0:00:43.6]} 27. Nd4 {[%clk 0:01:54.3]} 27...
Rxd2+ {[%clk 0:00:39.5]} 28. Rxd2 {[%clk 0:01:55.2]} 28... Nd5 {[%clk
0:00:39.4]} 29. Nf5+ {[%clk 0:01:47.4]} 29... gxf5 {[%clk 0:00:40.3]} 30. Rxd5
{[%clk 0:01:47.4]} 30... Rc2+ {[%clk 0:00:40.8]} 31. Kg3 {[%clk 0:01:47.6]}
31... f4+ {[%clk 0:00:37.4]} 32. Kxf4 {[%clk 0:01:45.7]} 32... Rxa2 {[%clk
0:00:37.2]} 33. g4 {[%clk 0:01:43.4]} 33... Rxh2 {[%clk 0:00:35.6]} 34. Rxa5
{[%clk 0:01:42.8]} 34... Rd2 {[%clk 0:00:29.9]} 35. Rg5+ {[%clk 0:01:39.4]}
35... Kf6 {[%clk 0:00:25.3]} 36. Rb5 {[%clk 0:01:38.9]} 36... Rd4+ {[%clk
0:00:23.4]} 37. Ke3 {[%clk 0:01:35.3]} 37... Rd7 {[%clk 0:00:23.9]} 38. Rb6+
{[%clk 0:01:34.9]} 38... Kg5 {[%clk 0:00:20]} 39. Rb5+ {[%clk 0:01:28.3]} 39...
Kh4 {[%clk 0:00:19.9]} 40. Rh5+ {[%clk 0:01:26.8]} 40... Kg3 {[%clk 0:00:20.1]}
41. Rxh7 {[%clk 0:01:21.9]} 41... Re7+ {[%clk 0:00:20.1]} 42. Kd4 {[%clk
0:01:22]} 42... Kxf3 {[%clk 0:00:19.9]} 43. g5 {[%clk 0:01:22.3]} 43... Kf4
{[%clk 0:00:05.9]} 44. g6 {[%clk 0:01:12.5]} 44... Re4+ {[%clk 0:00:03.3]} 45.
Kd5 {[%clk 0:01:09.7]} 45... Re5+ {[%clk 0:00:03]} 46. Kd4 {[%clk 0:01:08.1]}
46... fxg6 {[%clk 0:00:01.3]} 47. Rxb7 {[%clk 0:01:05.7]} 47... Rf5 {[%clk
0:00:01.8]} 48. b4 {[%clk 0:01:04.6]} 48... g5 {[%clk 0:00:02.7]} 49. b5 {[%clk
0:01:04.7]} 49... g4 {[%clk 0:00:03.6]} 50. b6 {[%clk 0:01:04]} 50... g3 {[%clk
0:00:04.2]} 51. Rg7 {[%clk 0:01:04]} 51... Rb5 {[%clk 0:00:03.1]} 52. Rg6 {[%clk
0:00:55.9]} 52... Kf3 {[%clk 0:00:01.9]} 53. Kc4 {[%clk 0:00:56]} 53... Rb1
{[%clk 0:00:02.3]} 54. Kc5 {[%clk 0:00:54.2]} 54... g2 {[%clk 0:00:01.9]} 55.
Kc6 {[%clk 0:00:53.7]} 55... Rb4 {[%clk 0:00:01.1]} 56. b7 {[%clk 0:00:46.1]}
56... Rb1 {[%clk 0:00:02]} 57. Kc7 {[%clk 0:00:40.8]} 57... Rc1+ {[%clk
0:00:02.1]} 58. Kd8 {[%clk 0:00:40.3]} 58... Rb1 {[%clk 0:00:02]} 59. Kc7 {[%clk
0:00:40.3]} 59... Rc1+ {[%clk 0:00:02.4]} 60. Kd7 {[%clk 0:00:37]} 60... Rd1+
{[%clk 0:00:02.3]} 61. Kc8 {[%clk 0:00:35.9]} 61... Rc1+ {[%clk 0:00:02.5]} 62.
Kd7 {[%clk 0:00:36.1]} 62... Rd1+ {[%clk 0:00:02.7]} 63. Kc7 {[%clk 0:00:35.6]}
63... Rc1+ {[%clk 0:00:02.9]} 1/2-1/2

[Event "*** SCC Grand Prix: Titled Tuesday Blitz"]
[Site "Chess.com"]
[Date "2020.08.04"]
[Round "6"]
[White "Chessbard1972"]
[Black "SiddharthGMJagadeesh"]
[Result "1/2-1/2"]
[WhiteElo "2344"]
[BlackElo "2584"]
[TimeControl "180+1"]
[EndTime "14:52:06 PDT"]
[Termination "Game drawn - insufficient material"]

1. e4 {[%clk 0:03:00.9]} 1... d6 {[%clk 0:02:59.3]} 2. d4 {[%clk 0:02:59.9]}
2... Nf6 {[%clk 0:02:58]} 3. Nc3 {[%clk 0:02:59.7]} 3... e5 {[%clk 0:02:58.6]}
4. Nf3 {[%clk 0:02:57.5]} 4... exd4 {[%clk 0:02:58.5]} 5. Nxd4 {[%clk
0:02:55.8]} 5... Be7 {[%clk 0:02:58.8]} 6. Be2 {[%clk 0:02:52.7]} 6... O-O
{[%clk 0:02:57.8]} 7. O-O {[%clk 0:02:51.9]} 7... Re8 {[%clk 0:02:58.1]} 8. f3
{[%clk 0:02:51.3]} 8... Bf8 {[%clk 0:02:48.7]} 9. Bg5 {[%clk 0:02:49.1]} 9... h6
{[%clk 0:02:47.8]} 10. Bh4 {[%clk 0:02:48]} 10... Nbd7 {[%clk 0:02:48.3]} 11.
Bc4 {[%clk 0:02:42.4]} 11... Ne5 {[%clk 0:02:47.3]} 12. Bb3 {[%clk 0:02:42]}
12... Ng6 {[%clk 0:02:47.1]} 13. Bf2 {[%clk 0:02:36.8]} 13... c6 {[%clk
0:02:46.1]} 14. Qd2 {[%clk 0:02:35.4]} 14... Qc7 {[%clk 0:02:37.7]} 15. Rad1
{[%clk 0:02:32.2]} 15... a6 {[%clk 0:02:35.3]} 16. a4 {[%clk 0:02:31]} 16... Bd7
{[%clk 0:02:29.5]} 17. Rfe1 {[%clk 0:02:28.3]} 17... Rad8 {[%clk 0:02:29]} 18.
Be3 {[%clk 0:02:20.3]} 18... c5 {[%clk 0:02:22.1]} 19. Nf5 {[%clk 0:02:14.6]}
19... Bxf5 {[%clk 0:02:17.3]} 20. exf5 {[%clk 0:02:14.2]} 20... Ne5 {[%clk
0:02:18.2]} 21. Nd5 {[%clk 0:02:11]} 21... Nxd5 {[%clk 0:02:15.4]} 22. Bxd5
{[%clk 0:02:10.9]} 22... Be7 {[%clk 0:01:57]} 23. h3 {[%clk 0:02:06.1]} 23...
Bf6 {[%clk 0:01:54.5]} 24. f4 {[%clk 0:02:05.6]} 24... Nc6 {[%clk 0:01:54.5]}
25. c3 {[%clk 0:02:04.6]} 25... Ne7 {[%clk 0:01:52]} 26. g4 {[%clk 0:01:56.3]}
26... Nxd5 {[%clk 0:01:47.8]} 27. Qxd5 {[%clk 0:01:55.8]} 27... Qd7 {[%clk
0:01:19.5]} 28. g5 {[%clk 0:01:51.5]} 28... hxg5 {[%clk 0:01:20.4]} 29. fxg5
{[%clk 0:01:51.4]} 29... Be5 {[%clk 0:01:18.1]} 30. g6 {[%clk 0:01:51]} 30...
Qxf5 {[%clk 0:01:16.4]} 31. gxf7+ {[%clk 0:01:42.5]} 31... Qxf7 {[%clk
0:01:17.3]} 32. Qxf7+ {[%clk 0:01:24.7]} 32... Kxf7 {[%clk 0:01:18.2]} 33. Bxc5
{[%clk 0:01:23.9]} 33... Bxc3 {[%clk 0:00:40.2]} 34. Rxe8 {[%clk 0:01:20.7]}
34... Kxe8 {[%clk 0:00:41.1]} 35. Bb6 {[%clk 0:01:12.1]} 35... Bxb2 {[%clk
0:00:31.5]} 36. Bxd8 {[%clk 0:01:10.4]} 36... Kxd8 {[%clk 0:00:32.4]} 37. Rxd6+
{[%clk 0:01:10]} 37... Kc7 {[%clk 0:00:32.9]} 38. Rd2 {[%clk 0:01:06.2]} 38...
Bf6 {[%clk 0:00:32.6]} 39. Kg2 {[%clk 0:01:00.6]} 39... Kb6 {[%clk 0:00:32]} 40.
Re2 {[%clk 0:00:55.1]} 40... Ka5 {[%clk 0:00:29]} 41. Re4 {[%clk 0:00:54.1]}
41... b5 {[%clk 0:00:29.3]} 42. axb5 {[%clk 0:00:53.3]} 42... axb5 {[%clk
0:00:30.2]} 43. Kf3 {[%clk 0:00:51.3]} 43... b4 {[%clk 0:00:30.3]} 44. Ke2
{[%clk 0:00:49.2]} 44... b3 {[%clk 0:00:28.7]} 45. Kd3 {[%clk 0:00:45.9]} 45...
b2 {[%clk 0:00:28.8]} 46. Kc2 {[%clk 0:00:45.5]} 46... Kb5 {[%clk 0:00:29.2]}
47. h4 {[%clk 0:00:39.6]} 47... Kc5 {[%clk 0:00:27.9]} 48. h5 {[%clk 0:00:39.3]}
48... Kd5 {[%clk 0:00:27.2]} 49. Re2 {[%clk 0:00:38.6]} 49... Be5 {[%clk
0:00:24.5]} 50. Rg2 {[%clk 0:00:31.2]} 50... Ke4 {[%clk 0:00:17.5]} 51. Rg6
{[%clk 0:00:27.8]} 51... Kf5 {[%clk 0:00:15.2]} 52. Rg2 {[%clk 0:00:25.5]} 52...
Bf6 {[%clk 0:00:14.7]} 53. Kb1 {[%clk 0:00:22.2]} 53... Ke6 {[%clk 0:00:12.9]}
54. Kc2 {[%clk 0:00:20.6]} 54... Kf7 {[%clk 0:00:13.4]} 55. Rg1 {[%clk
0:00:20.1]} 55... Be5 {[%clk 0:00:12.1]} 56. Kd3 {[%clk 0:00:18.9]} 56... Kf6
{[%clk 0:00:11.6]} 57. Ke4 {[%clk 0:00:18.1]} 57... Bc3 {[%clk 0:00:11.4]} 58.
Rg6+ {[%clk 0:00:16.3]} 58... Kf7 {[%clk 0:00:11]} 59. Rb6 {[%clk 0:00:15.8]}
59... Kg8 {[%clk 0:00:09.5]} 60. Kf5 {[%clk 0:00:15.4]} 60... Kh7 {[%clk
0:00:09.3]} 61. Kg5 {[%clk 0:00:15]} 61... Bf6+ {[%clk 0:00:09.3]} 62. Kg4
{[%clk 0:00:13.6]} 62... Kh6 {[%clk 0:00:09.3]} 63. Rb5 {[%clk 0:00:13.8]} 63...
Be5 {[%clk 0:00:07.5]} 64. Kh4 {[%clk 0:00:11.1]} 64... Bf6+ {[%clk 0:00:07.4]}
65. Kg4 {[%clk 0:00:10.8]} 65... Kh7 {[%clk 0:00:08.3]} 66. Rb7 {[%clk
0:00:09.1]} 66... Kg8 {[%clk 0:00:08.3]} 67. Rb5 {[%clk 0:00:09.7]} 67... Kf7
{[%clk 0:00:08.4]} 68. Kf5 {[%clk 0:00:10.1]} 68... Ke7 {[%clk 0:00:08.8]} 69.
Kg6 {[%clk 0:00:06.9]} 69... Bc3 {[%clk 0:00:07.3]} 70. h6 {[%clk 0:00:06.4]}
70... gxh6 {[%clk 0:00:08.2]} 71. Kxh6 {[%clk 0:00:06.3]} 71... Kd7 {[%clk
0:00:08.8]} 72. Rxb2 {[%clk 0:00:06.5]} 72... Bxb2 {[%clk 0:00:09.7]} 1/2-1/2

[Event "*** SCC Grand Prix: Titled Tuesday Blitz"]
[Site "Chess.com"]
[Date "2020.08.04"]
[Round "6"]
[White "MarcoRiehle"]
[Black "vladislavkovalev"]
[Result "0-1"]
[WhiteElo "2739"]
[BlackElo "2890"]
[TimeControl "180+1"]
[EndTime "14:52:12 PDT"]
[Termination "vladislavkovalev won by resignation"]

1. e4 {[%clk 0:03:00.9]} 1... e5 {[%clk 0:03:00.1]} 2. Nf3 {[%clk 0:03:00.5]}
2... Nc6 {[%clk 0:03:00.7]} 3. d4 {[%clk 0:02:58.4]} 3... exd4 {[%clk
0:03:00.9]} 4. Bc4 {[%clk 0:02:58.6]} 4... Bc5 {[%clk 0:02:58.7]} 5. c3 {[%clk
0:02:55.6]} 5... d3 {[%clk 0:02:49.5]} 6. b4 {[%clk 0:02:55]} 6... Bb6 {[%clk
0:02:47.1]} 7. Qb3 {[%clk 0:02:55.1]} 7... Qe7 {[%clk 0:02:43.5]} 8. O-O {[%clk
0:02:46.4]} 8... d6 {[%clk 0:02:42]} 9. a4 {[%clk 0:02:37.5]} 9... a6 {[%clk
0:02:41.9]} 10. a5 {[%clk 0:02:35.8]} 10... Ba7 {[%clk 0:02:42.3]} 11. b5 {[%clk
0:02:36]} 11... axb5 {[%clk 0:02:42.3]} 12. a6 {[%clk 0:02:36.3]} 12... bxc4
{[%clk 0:02:05.5]} 13. axb7 {[%clk 0:02:34.8]} 13... Bxb7 {[%clk 0:02:06.4]} 14.
Qxb7 {[%clk 0:02:28.2]} 14... Bxf2+ {[%clk 0:02:06.9]} 15. Kxf2 {[%clk
0:02:11.6]} 15... Rxa1 {[%clk 0:02:07.8]} 16. Qxc6+ {[%clk 0:02:10.8]} 16... Qd7
{[%clk 0:02:08.2]} 17. Qb7 {[%clk 0:01:57.8]} 17... Nf6 {[%clk 0:01:41.4]} 18.
e5 {[%clk 0:01:56.2]} 18... Ng4+ {[%clk 0:01:35.5]} 19. Kg1 {[%clk 0:01:44.7]}
19... O-O {[%clk 0:01:35.9]} 20. exd6 {[%clk 0:01:37.1]} 20... Qxd6 {[%clk
0:01:36.8]} 21. Nbd2 {[%clk 0:01:30.1]} 21... Qe6 {[%clk 0:00:40.8]} 22. Ne4
{[%clk 0:01:16.1]} 22... Qb6+ {[%clk 0:00:29.3]} 23. Qxb6 {[%clk 0:01:15]} 23...
cxb6 {[%clk 0:00:30.2]} 24. h3 {[%clk 0:01:13.5]} 24... Nf6 {[%clk 0:00:22.7]}
25. Nxf6+ {[%clk 0:01:12.6]} 25... gxf6 {[%clk 0:00:23.6]} 26. Be3 {[%clk
0:01:12.5]} 26... Rxf1+ {[%clk 0:00:18.8]} 27. Kxf1 {[%clk 0:01:13.4]} 27... b5
{[%clk 0:00:19.7]} 28. Nd4 {[%clk 0:01:09.2]} 28... Rb8 {[%clk 0:00:18.9]} 29.
Bd2 {[%clk 0:00:50.6]} 29... Kg7 {[%clk 0:00:14.3]} 30. Nf5+ {[%clk 0:00:49.8]}
30... Kf8 {[%clk 0:00:11.1]} 31. Bf4 {[%clk 0:00:48.4]} 31... Ra8 {[%clk
0:00:09.8]} 32. Bh6+ {[%clk 0:00:45.6]} 32... Kg8 {[%clk 0:00:08.4]} 33. Nd4
{[%clk 0:00:33.7]} 33... Ra1+ {[%clk 0:00:08.1]} 34. Kf2 {[%clk 0:00:33.9]}
34... Rb1 {[%clk 0:00:07.1]} 35. g4 {[%clk 0:00:31.3]} 35... Rb2+ {[%clk
0:00:05]} 36. Kf3 {[%clk 0:00:30]} 36... b4 {[%clk 0:00:05.1]} 37. cxb4 {[%clk
0:00:29.1]} 37... c3 {[%clk 0:00:05]} 38. b5 {[%clk 0:00:18.9]} 38... d2 {[%clk
0:00:05.1]} 39. Ke2 {[%clk 0:00:18.6]} 39... Rb4 {[%clk 0:00:02.5]} 40. Be3
{[%clk 0:00:15]} 40... Rb1 {[%clk 0:00:01.1]} 41. Bxd2 {[%clk 0:00:15]} 41...
cxd2 {[%clk 0:00:02]} 42. Kxd2 {[%clk 0:00:15.8]} 42... Kg7 {[%clk 0:00:02.5]}
43. Kc2 {[%clk 0:00:15]} 43... Ra1 {[%clk 0:00:02]} 44. Kb2 {[%clk 0:00:11.5]}
44... Ra8 {[%clk 0:00:02.2]} 45. Nf5+ {[%clk 0:00:08.8]} 45... Kg6 {[%clk
0:00:02.4]} 46. h4 {[%clk 0:00:09.2]} 46... h5 {[%clk 0:00:02.5]} 47. Ne7+
{[%clk 0:00:09.1]} 47... Kh7 {[%clk 0:00:02.9]} 48. gxh5 {[%clk 0:00:08.9]}
48... Rb8 {[%clk 0:00:03.5]} 49. Kc3 {[%clk 0:00:09]} 49... Rxb5 {[%clk
0:00:03.6]} 50. Kd4 {[%clk 0:00:09.6]} 50... Rxh5 {[%clk 0:00:04.1]} 51. Nd5
{[%clk 0:00:09.3]} 51... Rxh4+ {[%clk 0:00:02.9]} 52. Ke3 {[%clk 0:00:09.1]}
52... Kg6 {[%clk 0:00:03.6]} 53. Ne7+ {[%clk 0:00:09.2]} 53... Kg5 {[%clk
0:00:03.8]} 54. Kf3 {[%clk 0:00:10.1]} 54... f5 {[%clk 0:00:04.2]} 55. Nc6
{[%clk 0:00:09.8]} 55... Rh3+ {[%clk 0:00:04.5]} 56. Kg2 {[%clk 0:00:09.1]}
56... Ra3 {[%clk 0:00:05.2]} 57. Nd4 {[%clk 0:00:08.4]} 57... Kg4 {[%clk
0:00:04.9]} 58. Nb5 {[%clk 0:00:08.2]} 58... Ra2+ {[%clk 0:00:05.4]} 59. Kf1
{[%clk 0:00:08.7]} 59... f4 {[%clk 0:00:06.3]} 60. Nc3 {[%clk 0:00:09.2]} 60...
Rc2 {[%clk 0:00:05]} 61. Nd5 {[%clk 0:00:08.4]} 61... Kf3 {[%clk 0:00:04.4]} 62.
Ke1 {[%clk 0:00:08.8]} 62... Rc1+ {[%clk 0:00:04.6]} 63. Kd2 {[%clk 0:00:09.2]}
63... Rh1 {[%clk 0:00:05.2]} 64. Nf6 {[%clk 0:00:09.3]} 64... Kg2 {[%clk
0:00:04.9]} 65. Ng4 {[%clk 0:00:06.8]} 65... Kg3 {[%clk 0:00:04]} 66. Nf6 {[%clk
0:00:06]} 66... f3 {[%clk 0:00:04.3]} 67. Ke3 {[%clk 0:00:06.4]} 67... Re1+
{[%clk 0:00:02.8]} 68. Kd2 {[%clk 0:00:05]} 68... f2 {[%clk 0:00:03.7]} 69. Nh5+
{[%clk 0:00:04]} 69... Kf3 {[%clk 0:00:04.3]} 0-1